Workbook

Sheet Topics
A1: Section 2.1
A2: Fractions:
A3: Define fractions
A4: Proper fractions
A5: Improper fractions
A6: Mixed numbers
A7: Likr Fractions
A8: Unlike Fractions
A9: Factors & Product
A10: Prime Factors
A11: Write fractions in lowest terms
A12: Convert mixed numbers to improper fractions
A13: Convert improper fractions to mixed numbers
A14: Rules for divisibility
A15: Section 2.4
A16: Multiply and Divide Fractions
A17: Section 2.5
A18: Convert decimals to fractions
A19: Convert fractions to decimals
A20: Fractions and decimal equivalents
A21: Section 2.2 & 2.3
A22: Add and Subtract fractions
A23: Least common denominator (LCD) ==>> Girvin 3 Step Method
A24: Add & Subtract mix numbers

Sheet Parts Of The Whole
A1: ="If you eat "&B2&" slices and there are "&B3&" total slices, what fraction of the pizza did you eat?" -> If you eat 4 slices and there are 8 total slices, what fraction of the pizza did you eat?
A2: Slices you eat | B2: 4 | D2: Without the Fraction Number
A3: Total Slices | B3: 8 | D3: Format, we will se decimals
A4: Fraction | D4: <<== Use Fraction Number
D5: Formatting: "As eighths (4/8)"
A7: ="If you eat "&B8&" slices and there are "&B9&" total slices, what fraction of the pizza did you eat?" -> If you eat 4 slices and there are 8 total slices, what fraction of the pizza did you eat?
A8: Slices you eat | B8: 4
A9: Total Slices | B9: 8
A10: Fraction | D10: <<== Use Fraction Number
D11: Formatting: "Up to one digit (1/4)"
A13: ** We can see that Fraction Number Formatting automatically reduced the
A14: fraction. We must be careful when it automatically reduces ==> More later
A15: when we learn how to reduce Fractions
A17: "As eighths (4/8)" and "Up to one digit (1/4)" are Built-in Fraction Number
A18: Formats. Sometimes we cannot use the Built-in Fraction Number Formats
P50: ="Slices of"&CHAR(10)&"Pizza "&ROWS(P$50:P50) -> Slices of Pizza 1 | Q50: 1
P51: ="Slices of"&CHAR(10)&"Pizza "&ROWS(P$50:P51) -> Slices of Pizza 2 | Q51: 1
P52: ="Slices of"&CHAR(10)&"Pizza "&ROWS(P$50:P52) -> Slices of Pizza 3 | Q52: 1
P53: ="Slices of"&CHAR(10)&"Pizza "&ROWS(P$50:P53) -> Slices of Pizza 4 | Q53: 1
P54: ="Slices of"&CHAR(10)&"Pizza "&ROWS(P$50:P54) -> Slices of Pizza 5 | Q54: 1
P55: ="Slices of"&CHAR(10)&"Pizza "&ROWS(P$50:P55) -> Slices of Pizza 6 | Q55: 1
P56: ="Slices of"&CHAR(10)&"Pizza "&ROWS(P$50:P56) -> Slices of Pizza 7 | Q56: 1
P57: ="Slices of"&CHAR(10)&"Pizza "&ROWS(P$50:P57) -> Slices of Pizza 8 | Q57: 1

Sheet Parts Of The Whole (an)
A1: ="If you eat "&B2&" slices and there are "&B3&" total slices, what fraction of the pizza did you eat?" -> If you eat 4 slices and there are 8 total slices, what fraction of the pizza did you eat?
A2: Slices you eat | B2: 4 | D2: Without the Fraction Number
A3: Total Slices | B3: 8 | D3: Format, we will se decimals
A4: Fraction | B4: =B2/B3 -> 0.5 | D4: <<== Use Fraction Number
D5: Formatting: "As eighths (4/8)"
A7: ="If you eat "&B8&" slices and there are "&B9&" total slices, what fraction of the pizza did you eat?" -> If you eat 4 slices and there are 8 total slices, what fraction of the pizza did you eat?
A8: Slices you eat | B8: 4
A9: Total Slices | B9: 8
A10: Fraction | B10: =B8/B9 -> 0.5 | D10: <<== Use Fraction Number
D11: Formatting: "Up to one digit (1/4)"
A13: ** We can see that Fraction Number Formatting automatically reduced the
A14: fraction. We must be careful when it automatically reduces ==> More later
A15: when we learn how to reduce Fractions
A17: "As eighths (4/8)" and "Up to one digit (1/4)" are Built-in Fraction Number
A18: Formats. Sometimes we cannot use the Built-in Fraction Number Formats
P50: ="Slices of"&CHAR(10)&"Pizza "&ROWS(P$50:P50) -> Slices of Pizza 1 | Q50: 1
P51: ="Slices of"&CHAR(10)&"Pizza "&ROWS(P$50:P51) -> Slices of Pizza 2 | Q51: 1
P52: ="Slices of"&CHAR(10)&"Pizza "&ROWS(P$50:P52) -> Slices of Pizza 3 | Q52: 1
P53: ="Slices of"&CHAR(10)&"Pizza "&ROWS(P$50:P53) -> Slices of Pizza 4 | Q53: 1
P54: ="Slices of"&CHAR(10)&"Pizza "&ROWS(P$50:P54) -> Slices of Pizza 5 | Q54: 1
P55: ="Slices of"&CHAR(10)&"Pizza "&ROWS(P$50:P55) -> Slices of Pizza 6 | Q55: 1
P56: ="Slices of"&CHAR(10)&"Pizza "&ROWS(P$50:P56) -> Slices of Pizza 7 | Q56: 1
P57: ="Slices of"&CHAR(10)&"Pizza "&ROWS(P$50:P57) -> Slices of Pizza 8 | Q57: 1

Sheet Fractions
A1: To display Fractions in Excel, you must use Number Formatting
A2: Ctrl + 1 opens the Format Cells Dialog box. Use the Number tab Select Fraction format and scroll trough options If the built-in Fraction Number Format does not work, use: Custom # means integer (whole number) ? Means a digit in the numberator or denominator ??/?? custom number format will show two digits in the top and bottom
A3: Proper Fraction | B3: Improper Fraction | C3: Mixed Number | D3: Like Fraction | E3: Unlike Fraction
A4: =1/2 -> 0.5 | B4: =14/13 -> 1.076923077 | C4: =1+1/2 -> 1.5 | D4: =1/2 -> 0.5 | E4: =1/2 -> 0.5
A5: =9/16 -> 0.5625 | B5: 2 | C5: =1+1/13 -> 1.076923077 | D5: =3/2 -> 1.5 | E5: =1/4 -> 0.25
A9: **When putting numbers into a cell like 9/16, type formula like: =9/16
A10: **When putting numbers into a cell like 1 1/13, type formula like: =1+1/13
A12: Note About Fractions and Date Number Formatting:
A13: Type: 1/2 in cell and the result will be "2-Jan" | E13: Try it:
A15: This is why when you want a fraction, use the formula =1/2, then
A16: Number Format it with ?/? | E16: Try it: | G16: <<== How is this aligned???
G17: By Default, Numbers aligned right
A18: Or, if you do not want a number, but only a Text Label, try a "lead
A19: apostrophe", like '1/2 (This forces it to be "Text" | E19: Try it: | G19: <<== How is this aligned???
G20: By Default, Text aligned left

Sheet Fractions (an)
A1: To display Fractions in Excel, you must use Number Formatting
A2: Ctrl + 1 opens the format Cells Dialog box. Use the Number tab Select Fraction format and scroll trough options If the built-in Fraction Number Format does not work, use: Custom # means integer (whole number) ? Means a digit in the numberator or denominator ??/?? custom number format will show two digits in the top and bottom
A3: Proper Fraction | B3: Improper Fraction | C3: Mixed Number | D3: Like Fraction | E3: Unlike Fraction
A4: =1/2 -> 0.5 | B4: =14/13 -> 1.076923077 | C4: =1+1/2 -> 1.5 | D4: =1/2 -> 0.5 | E4: =1/2 -> 0.5
A5: =9/16 -> 0.5625 | B5: 2 | C5: =1+1/13 -> 1.076923077 | D5: =3/2 -> 1.5 | E5: =1/4 -> 0.25
A6: =1/2 -> 0.5 | B6: =14/13 -> 1.076923077 | C6: =1+1/2 -> 1.5 | D6: =1/2 -> 0.5 | E6: =1/2 -> 0.5
A7: =9/16 -> 0.5625 | B7: 2 | C7: =1+1/13 -> 1.076923077 | D7: =3/2 -> 1.5 | E7: =1/4 -> 0.25
A9: **When putting numbers into a cell like 9/16, type formula like: =9/16
A10: **When putting numbers into a cell like 1 1/13, type formula like: =1+1/13
A12: Note About Fractions and Date Number Formatting:
A13: Type: 1/2 in cell and the result will be "2-Jan" | E13: Try it: | F13: 2011-01-02
A15: This is why when you want a fraction, use the formula =1/2, then
A16: Number Format it with ?/? | E16: Try it: | F16: =1/2 -> 0.5 | G16: <<== How is this aligned???
G17: By Default, Numbers aligned right
A18: Or, if you do not want a number, but only a Text Label, try a "lead
A19: apostrophe", like '1/2 (This forces it to be "Text" | E19: Try it: | F19: 1/2 | G19: <<== How is this aligned???
G20: By Default, Text aligned left

Sheet Factor and Product
A1: Factor | B1: Factor | C1: Product
A2: 2 | B2: 12
A4: Factor | B4: Factor | C4: Product
A5: 4 | B5: 6
A7: Factor | B7: Factor | C7: Factor | D7: Product
A8: 2 | B8: 2 | C8: 6
A10: Factor | B10: Factor | C10: Factor | D10: Factor | E10: Product
A11: 2 | B11: 2 | C11: 2 | D11: 3
A13: Factor | B13: Factor | C13: Product | E13: **The Red Numbers are special Numbers called "Prime Numbers, because
A14: 1 | B14: 2 | E14: they only have two factors: itself and 1.
A15: 1 | B15: 3
A16: 1 | B16: 5 | E16: Define Prime Number:
A17: 1 | B17: 7 | E17: A prime number is a whole number that has exactly two factors: 1 and itself
A18: 1 | B18: 11 | E18: (two different numbers)
A19: 1 | B19: 13 | E19: 1 is not a prime number because 1 and itself are not different numbers, they
A20: 1 | B20: 17 | E20: are the same.
A21: 1 | B21: 19
A22: 1 | B22: 23
A23: 1 | B23: 29
A24: 1 | B24: 31
A25: 1 | B25: 37
A26: 1 | B26: 41
A27: 1 | B27: 43
A28: 1 | B28: 47
A29: 1 | B29: 53
A30: 1 | B30: 59
A31: 1 | B31: 61
A32: 1 | B32: 67
A33: 1 | B33: 71
A34: 1 | B34: 73
A35: 1 | B35: 79
A36: 1 | B36: 83
A37: 1 | B37: 89
A38: 1 | B38: 97

Sheet Factor and Product (an)
A1: Factor | B1: Factor | C1: Product
A2: 2 | B2: 12 | C2: =B2*A2 -> 24
A4: Factor | B4: Factor | C4: Product
A5: 4 | B5: 6 | C5: =B5*A5 -> 24
A7: Factor | B7: Factor | C7: Factor | D7: Product
A8: 2 | B8: 2 | C8: 6 | D8: =B8*A8*C8 -> 24
A10: Factor | B10: Factor | C10: Factor | D10: Factor | E10: Product
A11: 2 | B11: 2 | C11: 2 | D11: 3 | E11: =PRODUCT(A11:D11) -> 24
A13: Factor | B13: Factor | C13: Product | E13: **The Red Numbers are special Numbers called "Prime Numbers, because
A14: 1 | B14: 2 | C14: =B14*A14 -> 2 | E14: they only have two factors: itself and 1.
A15: 1 | B15: 3 | C15: =B15*A15 -> 3
A16: 1 | B16: 5 | C16: 5 | E16: Define Prime Number:
A17: 1 | B17: 7 | C17: 7 | E17: A prime number is a whole number that has exactly two factors: 1 and itself
A18: 1 | B18: 11 | C18: 11 | E18: (two different numbers)
A19: 1 | B19: 13 | C19: 13 | E19: 1 is not a prime number because 1 and itself are not different numbers, they
A20: 1 | B20: 17 | C20: 17 | E20: are the same.
A21: 1 | B21: 19 | C21: 19
A22: 1 | B22: 23 | C22: 23
A23: 1 | B23: 29 | C23: 29
A24: 1 | B24: 31 | C24: 31
A25: 1 | B25: 37 | C25: 37
A26: 1 | B26: 41 | C26: 41
A27: 1 | B27: 43 | C27: 43
A28: 1 | B28: 47 | C28: 47
A29: 1 | B29: 53 | C29: 53
A30: 1 | B30: 59 | C30: 59
A31: 1 | B31: 61 | C31: 61
A32: 1 | B32: 67 | C32: 67
A33: 1 | B33: 71 | C33: 71
A34: 1 | B34: 73 | C34: 73
A35: 1 | B35: 79 | C35: 79
A36: 1 | B36: 83 | C36: 83
A37: 1 | B37: 89 | C37: 89
A38: 1 | B38: 97 | C38: 97

Sheet Reduce Fractions
A1: Prime Numbers up to 97: | D1: ="Reduce: "&D5&"/"&G5 -> Reduce: 16/26
A2: 2 | C2: Step 1 | D2: Find all Prime Factors for the Numerator and Denominator
A3: 3
A4: 5 | C4: **Note: Start with 2, then try 3, then 5, etc…
A5: 7 | C5: List Prime Factors | D5: 16 | F5: List Prime Factors | G5: 26
A6: 11
A7: 13 | H7: <<== When you get a 1, stop (1 is not prime)
A8: 17
A9: 19 | E9: <<== When you get a 1, stop (1 is not prime)
A10: 23
A11: 29 | C11: Step 2 | D11: Write Fraction with Prime Factors in Numerator and Denominator
A12: 31
A13: 37 | C13: 2*2*2*2 | D13: ==>>
A14: 41 | C14: 2*13
A15: 43
A16: 47 | C16: Step 3 | D16: Cancel when a prime factor is in both the numerator and denominator
A17: 53
A18: 59 | C18: 2*2*2*2 | D18: ==>> | E18: 2*2*2 | F18: ==>> | G18: 8
A19: 61 | C19: 2*13 | E19: 13 | G19: 13
A20: 67
A21: 71 | C21: Why is this important?
A22: 73
A23: 79 | C23: Because in Excel we don't want to get tricked by number format
A24: 83
A25: 89 | C25: =$D$5&"/"&$G$5 -> 16/26
A26: 97 | D26: <<== If you were to apply the default Fraction Format, the number
D27: you "see" may not be eqivalent to the actual fraction number in
D28: the cell
C30: =$D$5&"/"&$G$5 -> 16/26
D31: <<== Before we add Fraction Number Format, we must reduce the
D32: fraction "by hand", and know what the correct reduced fraction is.
C34: ="Prove that "&TEXT(D5/G5,"?/?")&" is not equal to "&TEXT(D5/G5,"??/??")&":" -> Prove that 5/8 is not equal to 8/13:
C35: =TEXT(D5/G5,"?/?") -> 5/8
C36: =TEXT(D5/G5,"??/??") -> 8/13
C37: Logical Formula:
C39: ="Reduce: "&D41&"/"&G41&" and keep an improper fraction" -> Reduce: 27/15 and keep an improper fraction
C41: List Prime Factors | D41: 27 | F41: List Prime Factors | G41: 15
C46: =D41&"/"&G41 -> 27/15 | F46: Strike Through | G46: Ctrl + 5

Sheet Reduce Fractions (an)
A1: Prime Numbers up to 97: | D1: ="Reduce: "&D5&"/"&G5 -> Reduce: 16/26
A2: 2 | C2: Step 1 | D2: Find all Prime Factors for the Numerator and Denominator
A3: 3
A4: 5 | C4: **Note: Start with 2, then try 3, then 5, etc…
A5: 7 | C5: List Prime Factors | D5: 16 | F5: List Prime Factors | G5: 26
A6: 11 | C6: 2 | D6: =D5/C6 -> 8 | F6: 2 | G6: =G5/F6 -> 13
A7: 13 | C7: 2 | D7: =D6/C6 -> 4 | F7: 13 | G7: =G6/F7 -> 1 | H7: <<== When you get a 1, stop (1 is not prime)
A8: 17 | C8: 2 | D8: =D7/C8 -> 2
A9: 19 | C9: 2 | D9: =D8/C9 -> 1 | E9: <<== When you get a 1, stop (1 is not prime)
A10: 23
A11: 29 | C11: Step 2 | D11: Write Fraction with Prime Factors in Numerator and Denominator
A12: 31
A13: 37 | C13: 2*2*2*2 | D13: ==>>
A14: 41 | C14: 2*13
A15: 43
A16: 47 | C16: Step 3 | D16: Cancel when a prime factor is in both the numerator and denominator
A17: 53
A18: 59 | C18: 2*2*2*2 | D18: ==>> | E18: 2*2*2 | F18: ==>> | G18: 8
A19: 61 | C19: 2*13 | E19: 13 | G19: 13
A20: 67
A21: 71 | C21: Why is this important?
A22: 73
A23: 79 | C23: Because in Excel we don't want to get tricked by number format
A24: 83
A25: 89 | C25: =$D$5&"/"&$G$5 -> 16/26
A26: 97 | C26: =16/26 -> 0.6153846154 | D26: <<== If you were to apply the default Fraction Format, the number
D27: you "see" may not be eqivalent to the actual fraction number in
D28: the cell
C30: =$D$5&"/"&$G$5 -> 16/26
C31: =16/26 -> 0.6153846154 | D31: <<== Before we add Fraction Number Format, we must reduce the
D32: fraction "by hand", and know what the correct reduced fraction is.
C34: ="Prove that "&TEXT(D5/G5,"?/?")&" is not equal to "&TEXT(D5/G5,"??/??")&":" -> Prove that 5/8 is not equal to 8/13:
C35: =TEXT(D5/G5,"?/?") -> 5/8 | D35: =5/8 -> 0.625
C36: =TEXT(D5/G5,"??/??") -> 8/13 | D36: =8/13 -> 0.6153846154
C37: Logical Formula: | D37: =D36=D35 -> FALSE
C39: ="Reduce: "&D41&"/"&G41&" and keep an improper fraction" -> Reduce: 27/15 and keep an improper fraction
C41: List Prime Factors | D41: 27 | F41: List Prime Factors | G41: 15
C42: 3 | D42: =D41/C42 -> 9 | F42: 3 | G42: =G41/F42 -> 5
C43: 3 | D43: =D42/C42 -> 3 | F43: 5 | G43: =G42/F43 -> 1
C44: 3 | D44: =D43/C44 -> 1
C46: =D41&"/"&G41 -> 27/15 | F46: Strike Through | G46: Ctrl + 5
C47: =27/15 -> 1.8

Sheet Improper Mixed
A1: Change Improper Fraction To Mixed Number | C1: Step 1: | D1: Do Division
A2: Improper Fraction = 8/3 | C2: Step 2: | D2: Put Remainder over Denominator
D4: =QUOTIENT(D5,C5) -> 2 | E4: R | F4: =MOD(D5,C5) -> 2 | G4: ==>>
C5: 3 | D5: 8 | H5: =D4 -> 2 | I5: =F4/C5 -> 0.6666666667
D6: =-D4*C5 -> -6
D7: =SUM(D5:D6) -> 2
A9: Change Mixed Number To Improper Fraction | C9: Step 1: | D9: Multiply Denominator and Whole Number, then Add Result to Numerator
A10: Mixed Number = 2+2/3 | C10: Step 2: | D10: Place that Number over Denominator
E12: 2 | G12: = | J12: =E13&"*"&D13&"+"&E12 -> 3*2+2 | K12: = | L12: =E13*D13+E12 -> 8
D13: 2 | E13: 3 | J13: 3 | L13: =E13 -> 3
A15: End of Section 2.1

Sheet Improper Mixed (an)
A1: Change Improper Fraction To Mixed Number | C1: Step 1: | D1: Do Division
A2: Improper Fraction = 8/3 | C2: Step 2: | D2: Put Remainder over Denominator
A3: =8/3 -> 2.666666667
D4: =QUOTIENT(D5,C5) -> 2 | E4: R | F4: =MOD(D5,C5) -> 2 | G4: ==>>
C5: 3 | D5: 8 | H5: =D4 -> 2 | I5: =F4/C5 -> 0.6666666667
D6: =-D4*C5 -> -6
D7: =SUM(D5:D6) -> 2
A9: Change Mixed Number To Improper Fraction | C9: Step 1: | D9: Multiply Denominator and Whole Number, then Add Result to Numerator
A10: Mixed Number = 2+2/3 | C10: Step 2: | D10: Place that Number over Denominator
A11: =2+2/3 -> 2.666666667
E12: 2 | G12: = | J12: =E13&"*"&D13&"+"&E12 -> 3*2+2 | K12: = | L12: =E13*D13+E12 -> 8
D13: 2 | E13: 3 | J13: 3 | L13: =E13 -> 3
A15: End of Section 2.1

Sheet More FNF
A1: =4/8 -> 0.5 | B1: = | C1: 2*2 | D1: = | E1: 1
C2: 2*2*2 | E2: 2
A4: =4/8 -> 0.5
A6: =4/12 -> 0.3333333333 | B6: = | C6: 2*2 | D6: = | E6: 1
C7: 2*2*3 | E7: 3
A9: =4/12 -> 0.3333333333

Sheet More FNF (an)
A1: =4/8 -> 0.5 | B1: = | C1: 2*2 | D1: = | E1: 1
C2: 2*2*2 | E2: 2
A4: =4/8 -> 0.5 | B4: =4/8 -> 0.5
A6: =4/12 -> 0.3333333333 | B6: = | C6: 2*2 | D6: = | E6: 1
C7: 2*2*3 | E7: 3
A9: =4/12 -> 0.3333333333 | B9: =4/12 -> 0.3333333333

Sheet D R
A1: A number can be divided by:
A2: 2 | B2: If the last digit is 0, 2, 4, 6, or 8
A3: 3 | B3: If the sum of all the digits is divisible by 3
A4: 4 | B4: If the last two digits are divisible by 4
A5: 5 | B5: If the last digit is 0 or 5
A6: 6 | B6: If the number is even and the sum of the digits is divisible by 3
A7: 8 | B7: If the last three digits are divisible by 8
A8: 9 | B8: If the sum of all the digits is divisible by 9
A9: 10 | B9: If the last digit is 0
B11: End of Section 2.1

Sheet Mult and Div
A1: Multiply | C1: Divide | F1: Multiply
A2: =1/2 -> 0.5 | C2: =6/12 -> 0.5 | E2: same as ==>> | F2: =6/12 -> 0.5
A3: =1/4 -> 0.25 | C3: =1/2 -> 0.5 | F3: 2
A6: Multiply | C6: Divide | F6: P F | G6: Num
A7: =6/8 -> 0.75 | C7: 5 | G7: 96
A8: =2/12 -> 0.1666666667 | C8: =1/2 -> 0.5
C11: 5
C12: 0.5
A15: End of Section 2.4

Sheet Mult and Div (an)
A1: Multiply | C1: Divide | F1: Multiply
A2: =1/2 -> 0.5 | C2: =6/12 -> 0.5 | E2: same as ==>> | F2: =6/12 -> 0.5
A3: =1/4 -> 0.25 | C3: =1/2 -> 0.5 | F3: 2
A4: =A3*A2 -> 0.125 | C4: =C2/C3 -> 1 | F4: =F2*F3 -> 1
A6: Multiply | C6: Divide | F6: P F | G6: Num
A7: =6/8 -> 0.75 | C7: 5 | G7: 96
A8: =2/12 -> 0.1666666667 | C8: =1/2 -> 0.5 | F8: 2 | G8: =G7/F8 -> 48
A9: =A7*A8 -> 0.125 | C9: =C7/C8 -> 10 | F9: 2 | G9: =G8/F9 -> 24
A10: =A7*A8 -> 0.125 | F10: 2 | G10: 12
C11: 5 | F11: 2 | G11: 6
C12: 0.5 | F12: 2 | G12: 3
C13: =C11/C12 -> 10 | F13: 3 | G13: 1
A15: End of Section 2.4

Sheet D to F
A1: Convert Decimal To Fraction | I1: Formula | J1: Formula with Fraction Format | K1: Formula with 15 decimals showing | L1: Formula with 3 decimals showing
A2: 0.875 | D2: Prime Factors | E2: 875 | F2: Prime Factors | G2: 1000 | I2: =1/16 | J2: =1/16 -> 0.0625
I3: =1/9 | J3: =1/9 -> 0.1111111111
I4: =1/8 | J4: =1/8 -> 0.125
I5: =1/7 | J5: =1/7 -> 0.1428571429
I6: =1/6 | J6: =1/6 -> 0.1666666667
I7: =3/16 | J7: =3/16 -> 0.1875
I8: =1/5 | J8: =1/5 -> 0.2
I9: =1/4 | J9: =1/4 -> 0.25
I10: =5/16 | J10: =5/16 -> 0.3125
I11: =1/3 | J11: =1/3 -> 0.3333333333
I12: =3/8 | J12: =3/8 -> 0.375
A13: Convert Fraction to Decimal | I13: =7/16 | J13: =7/16 -> 0.4375
A14: =7/8 -> 0.875 | C14: 7/8 | D14: <<== If Default Number Format is in Place, which is | I14: =1/2 | J14: =1/2 -> 0.5
D15: a Number? A Word? | I15: =9/16 | J15: =9/16 -> 0.5625
I16: =5/8 | J16: =5/8 -> 0.625
I17: =2/3 | J17: =2/3 -> 0.6666666667
I18: =11/16 | J18: =11/16 -> 0.6875
I19: =3/4 | J19: =3/4 -> 0.75
I20: =13/16 | J20: =13/16 -> 0.8125
I21: =5/6 | J21: =5/6 -> 0.8333333333 | N21: End of Section 2.5
I22: =7/8 | J22: =7/8 -> 0.875
I23: =15/16 | J23: =15/16 -> 0.9375
I24: =16/16 | J24: =16/16 -> 1

Sheet D to F (an)
A1: Convert Decimal To Fraction | I1: Formula | J1: Formula with Fraction Format | K1: Formula with 15 decimals showing | L1: Formula with 3 decimals showing
A2: 0.875 | D2: Prime Factors | E2: 875 | F2: Prime Factors | G2: 1000 | I2: =1/16 | J2: =1/16 -> 0.0625 | K2: =J2 -> 0.0625 | L2: =J2 -> 0.0625
A3: =A2 -> 0.875 | D3: 5 | E3: =E2/D3 -> 175 | F3: 2 | G3: =G2/F3 -> 500 | I3: =1/9 | J3: =1/9 -> 0.1111111111 | K3: =J3 -> 0.1111111111 | L3: =J3 -> 0.1111111111
A4: =7/8 -> 0.875 | D4: 5 | E4: =E3/D4 -> 35 | F4: 2 | G4: =G3/F4 -> 250 | I4: =1/8 | J4: =1/8 -> 0.125 | K4: 0.125 | L4: 0.125
D5: 5 | E5: 7 | F5: 2 | G5: =G4/F5 -> 125 | I5: =1/7 | J5: =1/7 -> 0.1428571429 | K5: 0.1428571429 | L5: 0.1428571429
D6: 7 | E6: 1 | F6: 5 | G6: 25 | I6: =1/6 | J6: =1/6 -> 0.1666666667 | K6: 0.1666666667 | L6: 0.1666666667
F7: 5 | G7: 5 | I7: =3/16 | J7: =3/16 -> 0.1875 | K7: 0.1875 | L7: 0.1875
F8: 5 | G8: 1 | I8: =1/5 | J8: =1/5 -> 0.2 | K8: 0.2 | L8: 0.2
I9: =1/4 | J9: =1/4 -> 0.25 | K9: 0.25 | L9: 0.25
I10: =5/16 | J10: =5/16 -> 0.3125 | K10: 0.3125 | L10: 0.3125
I11: =1/3 | J11: =1/3 -> 0.3333333333 | K11: 0.3333333333 | L11: 0.3333333333
I12: =3/8 | J12: =3/8 -> 0.375 | K12: 0.375 | L12: 0.375
A13: Convert Fraction to Decimal | I13: =7/16 | J13: =7/16 -> 0.4375 | K13: 0.4375 | L13: 0.4375
A14: =7/8 -> 0.875 | C14: 7/8 | D14: <<== If Default Number Format is in Place, which is | I14: =1/2 | J14: =1/2 -> 0.5 | K14: 0.5 | L14: 0.5
A15: =A14 -> 0.875 | D15: a Number? A Word? | I15: =9/16 | J15: =9/16 -> 0.5625 | K15: 0.5625 | L15: 0.5625
I16: =5/8 | J16: =5/8 -> 0.625 | K16: 0.625 | L16: 0.625
A17: =7/8 -> 0.875 | I17: =2/3 | J17: =2/3 -> 0.6666666667 | K17: 0.6666666667 | L17: 0.6666666667
I18: =11/16 | J18: =11/16 -> 0.6875 | K18: 0.6875 | L18: 0.6875
I19: =3/4 | J19: =3/4 -> 0.75 | K19: 0.75 | L19: 0.75
I20: =13/16 | J20: =13/16 -> 0.8125 | K20: 0.8125 | L20: 0.8125
I21: =5/6 | J21: =5/6 -> 0.8333333333 | K21: 0.8333333333 | L21: 0.8333333333 | N21: End of Section 2.5
I22: =7/8 | J22: =7/8 -> 0.875 | K22: 0.875 | L22: 0.875
I23: =15/16 | J23: =15/16 -> 0.9375 | K23: 0.9375 | L23: 0.9375
I24: =16/16 | J24: =16/16 -> 1 | K24: 1 | L24: 1

Sheet Add(1)
D1: **Note: When you make a formula with Cell References, the
A2: Add | B2: Subtract | D2: Number Formatting from The Cell References is applied to the
A3: =2/5 -> 0.4 | B3: =2/5 -> 0.4 | D3: cell with the formula. No Problem: Remove The Formatting
A4: =1/5 -> 0.2 | B4: =1/5 -> 0.2 | D4: (General), then add your own.
D6: Add | G6: Add
A7: Add | D7: =5/8 -> 0.625 | G7: =7+1/2 -> 7.5
A8: =5/8 -> 0.625 | D8: =3/4 -> 0.75 | G8: =2+1/4 -> 2.25
A9: =3/12 -> 0.25 | D9: =1/2 -> 0.5 | G9: =10+2/3 -> 10.66666667
A12: End of Section 2.2

Sheet Add(1an)
D1: **Note: When you make a formula with Cell References, the
A2: Add | B2: Subtract | D2: Number Formatting from The Cell References is applied to the
A3: =2/5 -> 0.4 | B3: =2/5 -> 0.4 | D3: cell with the formula. No Problem: Remove The Formatting
A4: =1/5 -> 0.2 | B4: =1/5 -> 0.2 | D4: (General), then add your own.
A5: =SUM(A3:A4) -> 0.6 | B5: =B3-B4 -> 0.2
D6: Add | G6: Add
A7: Add | D7: =5/8 -> 0.625 | G7: =7+1/2 -> 7.5
A8: =5/8 -> 0.625 | D8: =3/4 -> 0.75 | G8: =2+1/4 -> 2.25
A9: =3/12 -> 0.25 | D9: =1/2 -> 0.5 | G9: =10+2/3 -> 10.66666667
A10: =SUM(A8:A9) -> 0.875 | D10: =SUM(D7:D9) -> 1.875 | G10: =SUM(G7:G9) -> 20.41666667
A12: End of Section 2.2

Sheet Word
A1: Using the three steps for solving word problems (1. List all facts & goal, 2. Setup & solve using
A2: efficient Excel features, 3. Answer with written statement. Use the cells below to list facts and
A3: ="make calculations and put your written answer in cell "&ADDRESS(ROW(A25),COLUMN(A25),4)&"." -> make calculations and put your written answer in cell A25.
A4: An experiment done with 600 smokers was conducted to see if a particular 'Stop Smoking Chewing
A5: Gum' could help people quit. After 4 months, 2/3 of the smokers were still smoking. Rounded to the
A6: nearest whole number, in the experiment how many smokers stop
A8: Step 1:
A18: Step 2:
A24: Step 3:

Sheet Word (an)
A1: Using the three steps for solving word problems (1. List all facts & goal, 2. Setup & solve using
A2: efficient Excel features, 3. Answer with written statement. Use the cells below to list facts and
A3: ="make calculations and put your written answer in cell "&ADDRESS(ROW(A25),COLUMN(A25),4)&"." -> make calculations and put your written answer in cell A25.
A4: An experiment done with 600 smokers was conducted to see if a particular 'Stop Smoking Chewing
A5: Gum' could help people quit. After 4 months, 2/3 of the smokers were still smoking. Rounded to the
A6: nearest whole number, in the experiment how many smokers stop
A8: Step 1:
A9: Smokers in Experiment | B9: 600
A10: Months of Study | B10: 4
A11: Fraction of Smokers still smoking | B11: =2/3 -> 0.6666666667 | D11: 3/3
A12: Note: 'of' means multiplying
A13: Fraction of Smokers who quit smoking | B13: =1/3 -> 0.3333333333
A14: Requirement: | B14: Round Answer to nearest whole number (ones position - dollar)
A15: Excel Requirement: | B15: ROUND function 2nd argument = 0
A16: Goal: | B16: Determine # of smokers in experiment who quite smoking
A18: Step 2:
A19: =A9 -> Smokers in Experiment | B19: =B9 -> 600 | D19: Check:
A20: =A13 -> Fraction of Smokers who quit smoking | B20: =B13 -> 0.3333333333 | D20: =A11 -> Fraction of Smokers still smoking | E20: =B11 -> 0.6666666667
A21: # of smokers in experiment who quite smoking | B21: =B19*B20 -> 200 | D21: # of smokers did not quit | E21: =B19*E20 -> 400
D22: # of smokers did quit | E22: =B19-E21 -> 200
A24: Step 3:
A25: The number of smokers in the experiment who quit after chewing the gum was 200.

Sheet HW==>>

Sheet 2.1
A1: 2.1 | B1: 5,11,17,23,29,31,33
A4: 5 | B4: =12+2/3 -> 12.66666667 | C4: ==>> | D4: (3*12+2)/3 | E4: ==>> | F4: =(3*12+2)/3 -> 12.66666667
A5: 11 | B5: =15+19/23 -> 15.82608696 | C5: ==>> | D5: (23*15+19)/23 | E5: ==>> | F5: =(23*15+19)/23 -> 15.82608696
A6: 17 | B6: =D8/C8 -> 3.8
B7: ==>> | D7: =QUOTIENT(D8,C8) -> 3 | E7: R | F7: =MOD(D8,C8) -> 8
C8: 10 | D8: 38
F9: 2*2*2 | H9: 2*2*2 | J9: 2*2 | L9: 4
D10: 8/10 | E10: ==>> | F10: 2*5 | G10: ==>> | H10: 2*5 | I10: ==>> | J10: 5 | K10: ==>> | L10: 5
B12: Answer 17 ==> | C12: =D7+L9/L10 -> 3.8
A15: 23 | B15: =D17/C17 -> 7.32
B16: ==>> | D16: =QUOTIENT(D17,C17) -> 7 | E16: R | F16: =MOD(D17,C17) -> 8
C17: 25 | D17: 183
B19: Answer 23 ==> | C19: =D16+F16/C17 -> 7.32
A21: 29 | B21: List Prime Factors | C21: 25 | D21: List Prime Factors | E21: 40
B22: 5 | C22: =C21/B22 -> 5 | D22: 2 | E22: =E21/D22 -> 20
B23: 5 | C23: 1 | D23: 2 | E23: 10
D24: 2 | E24: 5
D25: 5 | E25: 1
D27: 5*5 | F27: 5
B28: =C21/E21 -> 0.625 | C28: ==>> | D28: 5*2*2*2 | E28: ==>> | F28: 2*2*2 | G28: ==>> | H28: =5/(2*2*2) -> 0.625
A30: 31 | B30: List Prime Factors | C30: 27 | D30: List Prime Factors | E30: 45
B31: 3 | C31: =C30/B31 -> 9 | D31: 5 | E31: =E30/D31 -> 9
B32: 3 | C32: 3 | D32: 3 | E32: 3
B33: 3 | C33: =C32/B33 -> 1 | D33: 3 | E33: 1
D36: 3*3*3 | F36: 3
B37: =C30/E30 -> 0.6 | C37: ==>> | D37: 5*3*3 | E37: ==>> | F37: 5 | G37: ==>> | H37: =3/5 -> 0.6
A39: 33 | B39: List Prime Factors | C39: 165 | D39: List Prime Factors | E39: 180
B40: 3 | C40: =C39/B40 -> 55 | D40: 2 | E40: =E39/D40 -> 90
B41: 5 | C41: 11 | D41: 2 | E41: 45
B42: 11 | C42: =C41/B42 -> 1 | D42: 3 | E42: 15
D43: 3 | E43: 5
D44: 5 | E44: =E43/D44 -> 1
D46: 3*5*11 | F46: 11 | H46: 11
B47: =C39/E39 -> 0.9166666667 | C47: ==>> | D47: 2*2*3*3*5 | E47: ==>> | F47: 2*2*3 | G47: ==>> | H47: =2*2*3 -> 12 | I47: ==>> | J47: =11/12 -> 0.9166666667

Sheet 2.2
B1: 2.2 | C1: 17,23,25,28,47
B3: 17 | C3: A number that has only two factors: itself and 1
B5: 23 | D5: 11 | E5: - | F5: 5 | G5: = | H5: 11-5 | I5: = | J5: 6 | K5: =
D6: 12 | F6: 12 | H6: 12 | J6: 12
D8: 2*3 | E8: = | F8: 2*3 | G8: = | H8: 1
D9: 2*2*3 | F9: 2*2*3 | H9: 2
B11: 25 | H11: 28
A28: 47
A30: Step 1
A32: Fraction of Tank Filled at Beginning | B32: =7/8 -> 0.875
A33: Amount of Tank Delivered at 1st stop | B33: =1/4 -> 0.25
A34: Amount of Tank Delivered at 1st stop | B34: =1/3 -> 0.3333333333
A35: Goal: | B35: Find Fraction of tank left after deliveries
A37: Step 2
A38: =A32 -> Fraction of Tank Filled at Beginning | B38: 0.875
A39: Amount of Tank Delivered at 1st stop | B39: 0.25
A40: Amount of Tank Delivered at 1st stop | B40: 0.3333333333
A41: Fraction of tank left after deliveries | B41: =B38-B39-B40 -> 0.2916666667
A50: Step 3
A51: After the two deliveries, 7/24ths of the tanker's contents remain

Sheet 2.3
A1: 2.3 | B1: 3,14,23
A3: 3
A19: 14
H20: <<== This is #14, not #15
A35: 23
A36: Step 1
A38: Total Length of Security Fence | B38: =527+1/24 -> 527.0416667
A39: Length Side 1 | B39: =107+2/3 -> 107.6666667
A40: Length Side 2 | B40: =150+3/4 -> 150.75
A41: Length Side 3 | B41: =138+5/8 -> 138.625
A42: Goal: | B42: Find Length of third side
A44: Step 2
A45: =A38 -> Total Length of Security Fence | B45: 527.0416667 | C45: Feet
A46: Length Side 1 | B46: 107.6666667 | C46: Feet
A47: Length Side 2 | B47: 150.75 | C47: Feet
A48: Length Side 3 | B48: 138.625 | C48: Feet
A49: Total of 3 Sides | B49: =SUM(B46:B48) -> 397.0416667 | C49: Feet
A50: Length of 4th side | B50: =B45-B49 -> 130 | C50: Feet
A52: Step 3
A53: ="The legth of the 4th side is "&B50&" feet" -> The legth of the 4th side is 130 feet

Sheet 2.4
A1: 2.4 | B1: 7,25,37,40
A3: 7 | C3: =1+1/4 -> 1.25
C4: =3+1/2 -> 3.5
B5: Product | C5: =C4*C3 -> 4.375
A19: 25 | C19: =3/8 -> 0.375
C20: =2+1/2 -> 2.5
B21: Quotient | C21: =C19/C20 -> 0.15
A35: 37
A36: Step 1
A37: Cost of Hair Dryer per minute | B37: =3/10 -> 0.3 | C37: cent
A38: Note: "per" means division
A39: Use Dryer for: | B39: 30 | C39: minutes
A40: Goal: | B40: Find cost of using dryer for 30 minutes
A42: Step 2
A43: =A37 -> Cost of Hair Dryer per minute | B43: =B37 -> 0.3 | C43: cent
A44: =A39 -> Use Dryer for: | B44: 30
A45: Total pennies | B45: =B44*B43 -> 9 | C45: cents (pennies)
A50: Step 3
A51: At 3/10 cents per 1 minute, if you use the dryer for 30 minutes you will have to pay 9 cents
A53: 40
A54: Step 1
A55: Hours worked | B55: =38+1/4 -> 38.25
A56: Pay per hour | B56: 10
A57: Goal: | B57: Find out how much total money was earned
A59: Step 2
A60: =A55 -> Hours worked | B60: 38.25
A61: Pay per hour | B61: 10
A62: Total Money Earned | B62: =B61*B60 -> 382.5
A64: Step 3
A65: Jack made a total of $382.50

Sheet 2.5
A1: 2.5 | B1: 5,9,23,31,37
A3: 5 | B3: 0.73 | C3: ==>> | D3: =B3 -> 0.73
A4: 9 | B4: 0.34 | C4: ==>> | D4: 0.34
A5: 23 | B5: 0.0016 | C5: ==>> | D5: 0.0016
A19: 31 | B19: =2/3 -> 0.6666666667 | C19: ==>> | D19: =B19 -> 0.6666666667 | E19: =D19 -> 0.6666666667 | F19: Just apply Genereal Number Formatting
A20: 37 | B20: =22/25 -> 0.88 | C20: ==>> | D20: 0.88 | F20: Just apply Genereal Number Formatting

Sheet Linked (hidden)
A1: Using the three steps for solving word problems (1. List all facts & goal, 2. Setup & solve using | K1: Total Smokers | L1: 600
A2: efficient Excel features, 3. Answer with written statement. Use the cells below to list facts and | K2: Length of Time | L2: 4 | M2: months
A3: ="make calculations and put your written answer in cell "&ADDRESS(ROW(A23),COLUMN(A23),4)&"." -> make calculations and put your written answer in cell A23. | K3: Fraction of those who did not quit | L3: =2/3 -> 0.6666666667
A4: =K6&" "&K7 -> An experiment done with 600 smokers was conducted to see if a particular 'Stop Smoking Chewing Gum' could help people quit. After 4 months, 2/3 of the smokers were still smoking. Rounded to the nearest whole number, in the experiment how many smokers stopped smoking after chewing the gum?
A6: Step 1: | K6: ="An experiment done with "&L1&" smokers was conducted to see if a particular 'Stop Smoking Chewing Gum' could help people quit. After "&L2&" "&M2&", "&TEXT(L3,"?/?")&" of the smokers were still smoking." -> An experiment done with 600 smokers was conducted to see if a particular 'Stop Smoking Chewing Gum' could help people quit. After 4 months, 2/3 of the smokers were still smoking.
A7: =IF(K1<>"",K1,"") -> Total Smokers | B7: 600 | K7: Rounded to the nearest whole number, in the experiment how many smokers stopped smoking after chewing the gum?
A8: Length of Time | B8: 4 | C8: months
A9: Fraction of those who did not quit | B9: 0.6666666667
A10: Note: word "of" means Multiply
A11: Goal: | B11: how many smokers stopped smoking after chewing the gum
A12: Requirement: | B12: Round Answer to nearest whole number
A13: Excel Requirement | B13: ROUND second argument should be to ones (dollar) position so it should be 0
A14: Fraction of those who did quit | B14: =1/3 -> 0.3333333333
A16: Step 2:
A17: =A7 -> Total Smokers | B17: =B7 -> 600
A18: =A14 -> Fraction of those who did quit | B18: =B14 -> 0.3333333333
A19: # of Smokers who quit | B19: =ROUND(B18*B17,0) -> 200
A22: Step 3:
A23: ="The number of smokers who stopped smoking in the experiment after chewing the gum was "&B19&"." -> The number of smokers who stopped smoking in the experiment after chewing the gum was 200.
